[Event "Titled Tuesday Blitz October 11 Early 2022"]
[White "Kaidanov, Gregory"]
[Black "Tarasova, Viktoriya"]
[WhiteFideId "2008564"]
[BlackFideId "4175840"]
[WhiteElo "2617"]
[BlackElo "2182"]
[Result "1-0"]
[Round "03"]
[TimeControl "180+1"]
[Date "2022.10.12"]
[WhiteClock "0:02:27"]
[BlackClock "0:01:49"]

1. Nf3 {[%clk 0:03:00]}  Nf6 {[%clk 0:02:57]} 2. g3 {[%clk 0:03:00]}  d5 {[%clk 0:02:57]} 3. Bg2 {[%clk 0:02:59]}  c6 {[%clk 0:02:57]} 4. b3 {[%clk 0:02:58]}  Bg4 {[%clk 0:02:58]} 5. Bb2 {[%clk 0:02:58]}  Nbd7 {[%clk 0:02:58]} 6. O-O {[%clk 0:02:58]}  e6 {[%clk 0:02:57]} 7. c4 {[%clk 0:02:58]}  Bd6 {[%clk 0:02:58]} 8. d3 {[%clk 0:02:58]}  O-O {[%clk 0:02:57]} 9. Nbd2 {[%clk 0:02:59]}  Qe7 {[%clk 0:02:57]} 10. h3 {[%clk 0:02:59]}  Bh5 {[%clk 0:02:56]} 11. a3 {[%clk 0:02:58]}  e5 {[%clk 0:02:55]} 12. Nh4 {[%clk 0:02:50]}  Bg6 {[%clk 0:02:53]} 13. Nxg6 {[%clk 0:02:50]}  hxg6 {[%clk 0:02:51]} 14. Qc2 {[%clk 0:02:50]}  Rfe8 {[%clk 0:02:49]} 15. b4 {[%clk 0:02:49]}  a5 {[%clk 0:02:48]} 16. c5 {[%clk 0:02:47]}  Bc7 {[%clk 0:02:47]} 17. e4 {[%clk 0:02:47]}  Nf8 {[%clk 0:02:38]} 18. Rae1 {[%clk 0:02:42]}  Rad8 {[%clk 0:02:33]} 19. exd5 {[%clk 0:02:37]}  cxd5 {[%clk 0:02:22]} 20. f4 {[%clk 0:02:36]}  Qd7 {[%clk 0:02:02]} 21. fxe5 {[%clk 0:02:33]}  Nh5 {[%clk 0:02:00]} 22. g4 {[%clk 0:02:29]}  Ng3 {[%clk 0:01:54]} 23. Rf3 {[%clk 0:02:29]}  Ne4 {[%clk 0:01:48]} 24. dxe4 {[%clk 0:02:28]}  dxe4 {[%clk 0:01:49]} 25. Nxe4 {[%clk 0:02:27]} 1-0


[Site "https://www.chess.com"]

[Event "Titled Tuesday Blitz October 11 Early 2022"]
[White "Karavade, Eesha"]
[Black "Smietanska, Wiktoria"]
[WhiteFideId "5012600"]
[BlackFideId "21869359"]
[WhiteElo "2258"]
[BlackElo "1854"]
[Result "1-0"]
[Round "03"]
[TimeControl "180+1"]
[Date "2022.10.12"]
[WhiteClock "0:00:03"]
[BlackClock "0:00:02"]

1. d4 {[%clk 0:03:00]}  Nf6 {[%clk 0:02:57]} 2. c4 {[%clk 0:02:57]}  g6 {[%clk 0:02:57]} 3. Nf3 {[%clk 0:02:56]}  Bg7 {[%clk 0:02:57]} 4. g3 {[%clk 0:02:53]}  d6 {[%clk 0:02:57]} 5. Nc3 {[%clk 0:02:49]}  O-O {[%clk 0:02:56]} 6. Bg2 {[%clk 0:02:49]}  Nc6 {[%clk 0:02:53]} 7. O-O {[%clk 0:02:31]}  Bg4 {[%clk 0:02:50]} 8. h3 {[%clk 0:02:24]}  Bxf3 {[%clk 0:02:49]} 9. Bxf3 {[%clk 0:02:24]}  e5 {[%clk 0:02:48]} 10. dxe5 {[%clk 0:02:22]}  Nxe5 {[%clk 0:02:33]} 11. Bxb7 {[%clk 0:02:20]}  Rb8 {[%clk 0:02:33]} 12. Bg2 {[%clk 0:02:19]}  Nxc4 {[%clk 0:02:32]} 13. Qc2 {[%clk 0:02:06]}  Ne5 {[%clk 0:01:56]} 14. b3 {[%clk 0:01:58]}  d5 {[%clk 0:01:49]} 15. Bf4 {[%clk 0:01:54]}  Re8 {[%clk 0:01:44]} 16. Rfd1 {[%clk 0:01:50]}  c6 {[%clk 0:01:41]} 17. Rac1 {[%clk 0:01:49]}  Qd7 {[%clk 0:01:33]} 18. Na4 {[%clk 0:01:43]}  Rbc8 {[%clk 0:01:23]} 19. Nc5 {[%clk 0:01:40]}  Qe7 {[%clk 0:01:01]} 20. Qd2 {[%clk 0:01:28]}  Ned7 {[%clk 0:00:56]} 21. Nxd7 {[%clk 0:01:07]}  Nxd7 {[%clk 0:00:49]} 22. Be3 {[%clk 0:01:04]}  a6 {[%clk 0:00:35]} 23. Kf1 {[%clk 0:00:59]}  Red8 {[%clk 0:00:29]} 24. Bg5 {[%clk 0:00:54]}  Nf6 {[%clk 0:00:25]} 25. Qa5 {[%clk 0:00:46]}  Qb7 {[%clk 0:00:15]} 26. Rd3 {[%clk 0:00:33]}  Rd6 {[%clk 0:00:11]} 27. Bf4 {[%clk 0:00:29]}  Rd7 {[%clk 0:00:10]} 28. Rdc3 {[%clk 0:00:23]}  Ne4 {[%clk 0:00:06]} 29. R3c2 {[%clk 0:00:22]}  Nd6 {[%clk 0:00:05]} 30. Bxd6 {[%clk 0:00:19]}  Rxd6 {[%clk 0:00:05]} 31. h4 {[%clk 0:00:18]}  Be5 {[%clk 0:00:04]} 32. Kg1 {[%clk 0:00:18]}  h5 {[%clk 0:00:04]} 33. e3 {[%clk 0:00:18]}  Kg7 {[%clk 0:00:04]} 34. Qc5 {[%clk 0:00:17]}  Qd7 {[%clk 0:00:04]} 35. Qa5 {[%clk 0:00:16]}  Bf6 {[%clk 0:00:04]} 36. Qxa6 {[%clk 0:00:15]}  Qd8 {[%clk 0:00:02]} 37. Qe2 {[%clk 0:00:15]}  Qd7 {[%clk 0:00:02]} 38. Rd1 {[%clk 0:00:15]}  Re6 {[%clk 0:00:03]} 39. Qd2 {[%clk 0:00:13]}  Rd6 {[%clk 0:00:03]} 40. Qc1 {[%clk 0:00:12]}  c5 {[%clk 0:00:03]} 41. Rcd2 {[%clk 0:00:11]}  d4 {[%clk 0:00:03]} 42. exd4 {[%clk 0:00:10]}  cxd4 {[%clk 0:00:04]} 43. Qb1 {[%clk 0:00:10]}  Rc7 {[%clk 0:00:04]} 44. a4 {[%clk 0:00:10]}  Rc3 {[%clk 0:00:04]} 45. a5 {[%clk 0:00:09]}  Qc8 {[%clk 0:00:02]} 46. b4 {[%clk 0:00:09]}  Qb8 {[%clk 0:00:02]} 47. b5 {[%clk 0:00:07]}  Rc5 {[%clk 0:00:02]} 48. b6 {[%clk 0:00:07]}  Rxa5 {[%clk 0:00:02]} 49. b7 {[%clk 0:00:07]}  Ra7 {[%clk 0:00:02]} 50. Qe4 {[%clk 0:00:07]}  Rd7 {[%clk 0:00:02]} 51. Rb1 {[%clk 0:00:05]}  Rc7 {[%clk 0:00:02]} 52. Qd3 {[%clk 0:00:03]}  Re7 {[%clk 0:00:02]} 53. Re2 {[%clk 0:00:03]}  Rxe2 {[%clk 0:00:02]} 54. Qxe2 {[%clk 0:00:04]}  Kg8 {[%clk 0:00:02]} 55. Qc4 {[%clk 0:00:04]}  Bg7 {[%clk 0:00:02]} 56. Qc8+ {[%clk 0:00:03]} 1-0


[Site "https://www.chess.com"]

[Event "Titled Tuesday Blitz October 11 Early 2022"]
[White "Koziorowicz, Michal"]
[Black "Timofeev, Artyom"]
[WhiteFideId "21809194"]
[BlackFideId "4140419"]
[WhiteElo "2220"]
[BlackElo "2579"]
[Result "1-0"]
[Round "03"]
[TimeControl "180+1"]
[Date "2022.10.11"]
[WhiteClock "0:00:12"]
[BlackClock "0:00:11"]

1. e4 {[%clk 0:03:00]}  c6 {[%clk 0:02:59]} 2. d4 {[%clk 0:03:00]}  d5 {[%clk 0:02:59]} 3. e5 {[%clk 0:03:00]}  Bf5 {[%clk 0:02:59]} 4. h4 {[%clk 0:03:00]}  h6 {[%clk 0:02:56]} 5. c4 {[%clk 0:02:56]}  dxc4 {[%clk 0:02:52]} 6. Bxc4 {[%clk 0:02:53]}  e6 {[%clk 0:02:52]} 7. Nc3 {[%clk 0:02:52]}  Nd7 {[%clk 0:02:51]} 8. Nge2 {[%clk 0:02:52]}  Nb6 {[%clk 0:02:50]} 9. Bb3 {[%clk 0:02:52]}  Ne7 {[%clk 0:02:50]} 10. Be3 {[%clk 0:02:44]}  Qd7 {[%clk 0:02:48]} 11. O-O {[%clk 0:02:39]}  Ned5 {[%clk 0:02:47]} 12. Rc1 {[%clk 0:02:32]}  Be7 {[%clk 0:02:47]} 13. Ng3 {[%clk 0:02:18]}  Bg6 {[%clk 0:02:44]} 14. h5 {[%clk 0:02:16]}  Bh7 {[%clk 0:02:44]} 15. Nce4 {[%clk 0:01:56]}  Rd8 {[%clk 0:02:35]} 16. Qg4 {[%clk 0:01:51]}  Kf8 {[%clk 0:02:21]} 17. Rcd1 {[%clk 0:01:33]}  Rg8 {[%clk 0:02:04]} 18. Bc1 {[%clk 0:01:31]}  Bf5 {[%clk 0:01:56]} 19. Qf3 {[%clk 0:01:20]}  Bh7 {[%clk 0:01:56]} 20. Qg4 {[%clk 0:01:19]}  a5 {[%clk 0:01:52]} 21. a4 {[%clk 0:01:17]}  Qc7 {[%clk 0:01:40]} 22. f4 {[%clk 0:01:15]}  g6 {[%clk 0:01:36]} 23. Qf3 {[%clk 0:00:57]}  Ke8 {[%clk 0:01:25]} 24. hxg6 {[%clk 0:00:57]}  fxg6 {[%clk 0:01:25]} 25. Qg4 {[%clk 0:00:56]}  Qc8 {[%clk 0:01:23]} 26. Qh3 {[%clk 0:00:50]}  h5 {[%clk 0:01:22]} 27. Ng5 {[%clk 0:00:35]}  Bxg5 {[%clk 0:01:21]} 28. fxg5 {[%clk 0:00:36]}  Rf8 {[%clk 0:01:21]} 29. Ne4 {[%clk 0:00:35]}  Ke7 {[%clk 0:01:03]} 30. Rf6 {[%clk 0:00:25]}  Na8 {[%clk 0:00:33]} 31. Rdf1 {[%clk 0:00:25]}  Nac7 {[%clk 0:00:34]} 32. Bd1 {[%clk 0:00:18]}  b6 {[%clk 0:00:26]} 33. Bxh5 {[%clk 0:00:18]}  Nxf6 {[%clk 0:00:23]} 34. gxf6+ {[%clk 0:00:16]}  Kd7 {[%clk 0:00:24]} 35. Bg4 {[%clk 0:00:17]}  Bg8 {[%clk 0:00:23]} 36. f7 {[%clk 0:00:17]}  Rxf7 {[%clk 0:00:20]} 37. Rxf7+ {[%clk 0:00:16]}  Bxf7 {[%clk 0:00:20]} 38. Nf6+ {[%clk 0:00:17]}  Ke7 {[%clk 0:00:19]} 39. Bg5 {[%clk 0:00:17]}  Rxd4 {[%clk 0:00:18]} 40. Nd5+ {[%clk 0:00:13]}  Kf8 {[%clk 0:00:12]} 41. Qh8+ {[%clk 0:00:13]}  Bg8 {[%clk 0:00:13]} 42. Qf6+ {[%clk 0:00:11]}  Bf7 {[%clk 0:00:11]} 43. Bh6+ {[%clk 0:00:12]}  Ke8 {[%clk 0:00:11]} 44. Qe7# {[%clk 0:00:12]} 1-0


[Site "https://www.chess.com"]

[Event "Titled Tuesday Blitz October 11 Early 2022"]
[White "Krishnan, Varun"]
[Black "Toshali, V"]
[WhiteFideId "5054508"]
[BlackFideId "5072611"]
[WhiteElo "2622"]
[BlackElo "1973"]
[Result "1-0"]
[Round "03"]
[TimeControl "180+1"]
[Date "2022.10.12"]
[WhiteClock "0:01:04"]
[BlackClock "0:00:19"]

1. e4 {[%clk 0:03:00]}  c6 {[%clk 0:02:53]} 2. d4 {[%clk 0:02:57]}  d5 {[%clk 0:02:53]} 3. exd5 {[%clk 0:02:58]}  cxd5 {[%clk 0:02:53]} 4. c4 {[%clk 0:02:58]}  Nc6 {[%clk 0:02:50]} 5. cxd5 {[%clk 0:02:55]}  Qxd5 {[%clk 0:02:49]} 6. Be3 {[%clk 0:02:55]}  e5 {[%clk 0:02:44]} 7. Nc3 {[%clk 0:02:54]}  Bb4 {[%clk 0:02:44]} 8. dxe5 {[%clk 0:02:51]}  Qxe5 {[%clk 0:02:32]} 9. Qb3 {[%clk 0:02:43]}  Be6 {[%clk 0:02:22]} 10. Bc4 {[%clk 0:02:35]}  Bxc4 {[%clk 0:02:21]} 11. Qxc4 {[%clk 0:02:34]}  Nf6 {[%clk 0:02:22]} 12. Nf3 {[%clk 0:02:30]}  Qa5 {[%clk 0:02:08]} 13. O-O {[%clk 0:02:27]}  O-O {[%clk 0:02:08]} 14. Rac1 {[%clk 0:02:20]}  Bxc3 {[%clk 0:02:06]} 15. Rxc3 {[%clk 0:02:19]}  Ne5 {[%clk 0:02:04]} 16. Nxe5 {[%clk 0:02:16]}  Qxe5 {[%clk 0:02:05]} 17. Qc7 {[%clk 0:02:15]}  Qd5 {[%clk 0:01:06]} 18. Rc5 {[%clk 0:02:06]}  Qxa2 {[%clk 0:01:05]} 19. Bd4 {[%clk 0:01:46]}  Qa6 {[%clk 0:00:47]} 20. Rg5 {[%clk 0:01:39]}  Rac8 {[%clk 0:00:44]} 21. Qg3 {[%clk 0:01:33]}  g6 {[%clk 0:00:43]} 22. Rf5 {[%clk 0:01:25]}  Ne4 {[%clk 0:00:38]} 23. Qe5 {[%clk 0:01:16]}  f6 {[%clk 0:00:33]} 24. Qd5+ {[%clk 0:01:15]}  Rf7 {[%clk 0:00:30]} 25. Rf4 {[%clk 0:01:14]}  f5 {[%clk 0:00:19]} 26. Rxe4 {[%clk 0:01:05]}  fxe4 {[%clk 0:00:19]} 27. Qe5 {[%clk 0:01:06]}  Kf8 {[%clk 0:00:19]} 28. Qh8+ {[%clk 0:01:04]}  Ke7 {[%clk 0:00:19]} 29. Qxc8 {[%clk 0:01:04]} 1-0


[Site "https://www.chess.com"]

[Event "Titled Tuesday Blitz October 11 Early 2022"]
[White "Liu, Xiangyi"]
[Black "Namitbir Singh Walia"]
[WhiteFideId "8605718"]
[BlackFideId "35071068"]
[WhiteElo "2323"]
[BlackElo "2239"]
[Result "1/2-1/2"]
[Round "03"]
[TimeControl "180+1"]
[Date "2022.10.12"]
[WhiteClock "0:00:19"]
[BlackClock "0:00:06"]

1. e4 {[%clk 0:03:00]}  c5 {[%clk 0:02:58]} 2. Nf3 {[%clk 0:02:59]}  Nc6 {[%clk 0:02:59]} 3. Bb5 {[%clk 0:02:59]}  g6 {[%clk 0:02:58]} 4. O-O {[%clk 0:02:59]}  Bg7 {[%clk 0:02:58]} 5. Re1 {[%clk 0:02:59]}  e5 {[%clk 0:02:57]} 6. a4 {[%clk 0:02:56]}  Nge7 {[%clk 0:02:54]} 7. Na3 {[%clk 0:02:53]}  O-O {[%clk 0:02:53]} 8. Bc4 {[%clk 0:02:49]}  d5 {[%clk 0:02:44]} 9. exd5 {[%clk 0:02:49]}  Nxd5 {[%clk 0:02:45]} 10. h3 {[%clk 0:02:50]}  a6 {[%clk 0:02:40]} 11. d3 {[%clk 0:02:49]}  Re8 {[%clk 0:02:35]} 12. Bg5 {[%clk 0:02:46]}  Qd6 {[%clk 0:02:35]} 13. Qd2 {[%clk 0:02:45]}  Bf5 {[%clk 0:01:57]} 14. Bb3 {[%clk 0:02:30]}  Nd4 {[%clk 0:01:55]} 15. Nxd4 {[%clk 0:02:29]}  exd4 {[%clk 0:01:56]} 16. Nc4 {[%clk 0:02:19]}  Qc7 {[%clk 0:01:48]} 17. a5 {[%clk 0:02:15]}  Be6 {[%clk 0:01:38]} 18. Re2 {[%clk 0:01:58]}  Bd7 {[%clk 0:01:31]} 19. Rae1 {[%clk 0:01:57]}  Rxe2 {[%clk 0:01:29]} 20. Rxe2 {[%clk 0:01:58]}  Re8 {[%clk 0:01:29]} 21. Rxe8+ {[%clk 0:01:47]}  Bxe8 {[%clk 0:01:30]} 22. Qe2 {[%clk 0:01:47]}  Bc6 {[%clk 0:01:25]} 23. Nb6 {[%clk 0:01:20]}  Nf4 {[%clk 0:01:09]} 24. Qg4 {[%clk 0:00:31]}  Be5 {[%clk 0:00:42]} 25. Bxf4 {[%clk 0:00:22]}  Bxf4 {[%clk 0:00:41]} 26. g3 {[%clk 0:00:20]}  Qe5 {[%clk 0:00:24]} 27. Kf1 {[%clk 0:00:17]}  Bd2 {[%clk 0:00:21]} 28. Qd1 {[%clk 0:00:16]}  Bxa5 {[%clk 0:00:15]} 29. Nc4 {[%clk 0:00:15]}  Qd5 {[%clk 0:00:08]} 30. f3 {[%clk 0:00:13]}  Bc7 {[%clk 0:00:07]} 31. Kf2 {[%clk 0:00:13]}  Qe6 {[%clk 0:00:05]} 32. Qf1 {[%clk 0:00:09]}  Qf6 {[%clk 0:00:04]} 33. Qg2 {[%clk 0:00:09]}  Qg5 {[%clk 0:00:04]} 34. f4 {[%clk 0:00:08]}  Bxg2 {[%clk 0:00:02]} 35. fxg5 {[%clk 0:00:08]}  Bxh3 {[%clk 0:00:03]} 36. Nd2 {[%clk 0:00:08]}  Bd7 {[%clk 0:00:03]} 37. Bd5 {[%clk 0:00:08]}  Bc6 {[%clk 0:00:04]} 38. Bxc6 {[%clk 0:00:08]}  bxc6 {[%clk 0:00:05]} 39. Ne4 {[%clk 0:00:09]}  Bb6 {[%clk 0:00:05]} 40. Nf6+ {[%clk 0:00:09]}  Kg7 {[%clk 0:00:06]} 41. Nd7 {[%clk 0:00:09]}  Bd8 {[%clk 0:00:06]} 42. Nxc5 {[%clk 0:00:09]}  Bxg5 {[%clk 0:00:07]} 43. Nxa6 {[%clk 0:00:10]}  Be3+ {[%clk 0:00:07]} 44. Kf3 {[%clk 0:00:10]}  h5 {[%clk 0:00:08]} 45. Nb8 {[%clk 0:00:10]}  c5 {[%clk 0:00:08]} 46. Nd7 {[%clk 0:00:11]}  Bc1 {[%clk 0:00:09]} 47. b3 {[%clk 0:00:10]}  Ba3 {[%clk 0:00:09]} 48. Ke4 {[%clk 0:00:10]}  g5 {[%clk 0:00:08]} 49. Kf5 {[%clk 0:00:11]}  h4 {[%clk 0:00:09]} 50. gxh4 {[%clk 0:00:11]}  gxh4 {[%clk 0:00:09]} 51. Kg4 {[%clk 0:00:12]}  Kg6 {[%clk 0:00:09]} 52. Ne5+ {[%clk 0:00:12]}  Kf6 {[%clk 0:00:10]} 53. Nc4 {[%clk 0:00:12]}  Bb4 {[%clk 0:00:10]} 54. Kxh4 {[%clk 0:00:12]}  Kf5 {[%clk 0:00:10]} 55. Kg3 {[%clk 0:00:13]}  f6 {[%clk 0:00:10]} 56. Kf3 {[%clk 0:00:14]}  Bc3 {[%clk 0:00:09]} 57. Nd6+ {[%clk 0:00:14]}  Ke6 {[%clk 0:00:09]} 58. Ne4 {[%clk 0:00:15]}  Bb4 {[%clk 0:00:09]} 59. Ng3 {[%clk 0:00:14]}  f5 {[%clk 0:00:09]} 60. Nh5 {[%clk 0:00:13]}  Ke5 {[%clk 0:00:08]} 61. Nf4 {[%clk 0:00:13]}  Bd2 {[%clk 0:00:08]} 62. Ng6+ {[%clk 0:00:13]}  Kf6 {[%clk 0:00:08]} 63. Nh4 {[%clk 0:00:14]}  Kg5 {[%clk 0:00:08]} 64. Ng2 {[%clk 0:00:15]}  f4 {[%clk 0:00:07]} 65. Ke2 {[%clk 0:00:13]}  Bc1 {[%clk 0:00:05]} 66. Ne1 {[%clk 0:00:14]}  Kg4 {[%clk 0:00:05]} 67. Nf3 {[%clk 0:00:14]}  Be3 {[%clk 0:00:05]} 68. Ne5+ {[%clk 0:00:14]}  Kg3 {[%clk 0:00:05]} 69. Nf3 {[%clk 0:00:15]}  Kg2 {[%clk 0:00:06]} 70. Ne5 {[%clk 0:00:15]}  Bc1 {[%clk 0:00:02]} 71. Nf3 {[%clk 0:00:15]}  Bb2 {[%clk 0:00:02]} 72. Ne5 {[%clk 0:00:15]}  Bc3 {[%clk 0:00:03]} 73. Nf3 {[%clk 0:00:16]}  Ba5 {[%clk 0:00:03]} 74. Ne5 {[%clk 0:00:16]}  Bc7 {[%clk 0:00:04]} 75. Nf3 {[%clk 0:00:17]}  Bd8 {[%clk 0:00:03]} 76. Nd2 {[%clk 0:00:17]}  Be7 {[%clk 0:00:03]} 77. Nf3 {[%clk 0:00:17]}  Bf6 {[%clk 0:00:04]} 78. Ne1+ {[%clk 0:00:18]}  Kg3 {[%clk 0:00:03]} 79. Nf3 {[%clk 0:00:19]}  Be7 {[%clk 0:00:04]} 80. Nd2 {[%clk 0:00:19]}  Bd8 {[%clk 0:00:04]} 81. Nf3 {[%clk 0:00:19]}  Ba5 {[%clk 0:00:04]} 82. Ne5 {[%clk 0:00:19]}  Bc7 {[%clk 0:00:04]} 83. Nf3 {[%clk 0:00:19]}  Ba5 {[%clk 0:00:04]} 84. Ne5 {[%clk 0:00:19]}  Bc7 {[%clk 0:00:05]} 85. Nf3 {[%clk 0:00:19]}  Ba5 {[%clk 0:00:06]} 1/2-1/2


[Site "https://www.chess.com"]

[Event "Titled Tuesday Blitz October 11 Early 2022"]
[White "Mamedov, Rauf"]
[Black "Dardha, Daniel"]
[WhiteFideId "13401653"]
[BlackFideId "240990"]
[WhiteElo "2650"]
[BlackElo "2528"]
[Result "1-0"]
[Round "03"]
[TimeControl "180+1"]
[Date "2022.10.11"]
[WhiteClock "0:00:15"]
[BlackClock "0:00:01"]

1. e4 {[%clk 0:02:59]}  e5 {[%clk 0:02:55]} 2. Nf3 {[%clk 0:02:58]}  Nc6 {[%clk 0:02:53]} 3. d4 {[%clk 0:02:58]}  exd4 {[%clk 0:02:51]} 4. Bc4 {[%clk 0:02:58]}  Bc5 {[%clk 0:02:46]} 5. Ng5 {[%clk 0:02:58]}  Nh6 {[%clk 0:02:45]} 6. Nxf7 {[%clk 0:02:59]}  Nxf7 {[%clk 0:02:46]} 7. Bxf7+ {[%clk 0:02:59]}  Kxf7 {[%clk 0:02:46]} 8. Qh5+ {[%clk 0:03:00]}  g6 {[%clk 0:02:47]} 9. Qxc5 {[%clk 0:03:00]}  d5 {[%clk 0:02:48]} 10. O-O {[%clk 0:02:56]}  dxe4 {[%clk 0:02:48]} 11. c3 {[%clk 0:02:56]}  Qd6 {[%clk 0:02:48]} 12. Qxd6 {[%clk 0:02:56]}  cxd6 {[%clk 0:02:49]} 13. cxd4 {[%clk 0:02:57]}  Nxd4 {[%clk 0:02:41]} 14. Nc3 {[%clk 0:02:57]}  Bf5 {[%clk 0:02:40]} 15. Bf4 {[%clk 0:02:53]}  Rhd8 {[%clk 0:02:27]} 16. Rad1 {[%clk 0:02:52]}  Ne6 {[%clk 0:02:17]} 17. Bxd6 {[%clk 0:02:51]}  Rd7 {[%clk 0:02:14]} 18. Ba3 {[%clk 0:02:31]}  Rad8 {[%clk 0:02:12]} 19. Rde1 {[%clk 0:02:31]}  Rd4 {[%clk 0:01:57]} 20. h3 {[%clk 0:02:26]}  h5 {[%clk 0:01:56]} 21. Re3 {[%clk 0:02:23]}  Nf4 {[%clk 0:01:44]} 22. f3 {[%clk 0:02:01]}  Rd3 {[%clk 0:01:12]} 23. fxe4 {[%clk 0:02:01]}  Rxe3 {[%clk 0:01:12]} 24. Rxf4 {[%clk 0:02:01]}  Rd4 {[%clk 0:01:09]} 25. Bc5 {[%clk 0:01:58]}  Rexe4 {[%clk 0:00:54]} 26. Rf1 {[%clk 0:01:43]}  Ke6 {[%clk 0:00:19]} 27. Bxa7 {[%clk 0:01:40]}  Rd2 {[%clk 0:00:09]} 28. b3 {[%clk 0:00:32]}  Re5 {[%clk 0:00:05]} 29. Bb6 {[%clk 0:00:32]}  Rc2 {[%clk 0:00:04]} 30. Bd4 {[%clk 0:00:31]}  Ra5 {[%clk 0:00:04]} 31. Re1+ {[%clk 0:00:29]}  Kf7 {[%clk 0:00:04]} 32. a4 {[%clk 0:00:28]}  Ra6 {[%clk 0:00:04]} 33. Re5 {[%clk 0:00:21]}  Re6 {[%clk 0:00:04]} 34. Rb5 {[%clk 0:00:21]}  Re1+ {[%clk 0:00:03]} 35. Kh2 {[%clk 0:00:22]}  Rec1 {[%clk 0:00:03]} 36. Rxb7+ {[%clk 0:00:21]}  Kg8 {[%clk 0:00:02]} 37. Rg7+ {[%clk 0:00:21]}  Kf8 {[%clk 0:00:02]} 38. Rc7 {[%clk 0:00:22]}  Rd2 {[%clk 0:00:01]} 39. Be3 {[%clk 0:00:21]}  Rdc2 {[%clk 0:00:01]} 40. Bxc1 {[%clk 0:00:22]}  Rxc1 {[%clk 0:00:02]} 41. a5 {[%clk 0:00:22]}  Ra1 {[%clk 0:00:02]} 42. b4 {[%clk 0:00:22]}  g5 {[%clk 0:00:02]} 43. Rc5 {[%clk 0:00:20]}  Be6 {[%clk 0:00:01]} 44. Rxg5 {[%clk 0:00:20]}  Ra3 {[%clk 0:00:01]} 45. Ne4 {[%clk 0:00:20]}  Ra2 {[%clk 0:00:01]} 46. Rxh5 {[%clk 0:00:19]}  Bc4 {[%clk 0:00:02]} 47. Rc5 {[%clk 0:00:18]}  Bd3 {[%clk 0:00:02]} 48. Ng3 {[%clk 0:00:15]}  Ke7 {[%clk 0:00:02]} 49. Nf5+ {[%clk 0:00:14]}  Kf6 {[%clk 0:00:02]} 50. Ne3 {[%clk 0:00:14]}  Ra4 {[%clk 0:00:02]} 51. Kg3 {[%clk 0:00:14]}  Ke6 {[%clk 0:00:02]} 52. Rc6+ {[%clk 0:00:13]}  Kd7 {[%clk 0:00:03]} 53. Rb6 {[%clk 0:00:14]}  Ra3 {[%clk 0:00:02]} 54. Kf4 {[%clk 0:00:15]}  Be2 {[%clk 0:00:02]} 55. h4 {[%clk 0:00:15]}  Ra1 {[%clk 0:00:02]} 56. g4 {[%clk 0:00:15]}  Rg1 {[%clk 0:00:01]} 57. h5 {[%clk 0:00:15]}  Kc7 {[%clk 0:00:02]} 58. h6 {[%clk 0:00:15]}  Bd3 {[%clk 0:00:01]} 59. g5 {[%clk 0:00:14]}  Rh1 {[%clk 0:00:01]} 60. Ke5 {[%clk 0:00:14]}  Rh4 {[%clk 0:00:02]} 61. Nf5 {[%clk 0:00:14]}  Re4+ {[%clk 0:00:02]} 62. Kd5 {[%clk 0:00:13]}  Rf4 {[%clk 0:00:02]} 63. Nd4 {[%clk 0:00:14]}  Rg4 {[%clk 0:00:02]} 64. Ne6+ {[%clk 0:00:13]}  Kc8 {[%clk 0:00:02]} 65. Ke5 {[%clk 0:00:13]}  Re4+ {[%clk 0:00:02]} 66. Kf6 {[%clk 0:00:14]}  Re1 {[%clk 0:00:02]} 67. g6 {[%clk 0:00:13]}  Bc4 {[%clk 0:00:02]} 68. h7 {[%clk 0:00:13]}  Rh1 {[%clk 0:00:01]} 69. Rc6+ {[%clk 0:00:14]}  Kb7 {[%clk 0:00:01]} 70. Rxc4 {[%clk 0:00:15]}  Rh2 {[%clk 0:00:02]} 71. b5 {[%clk 0:00:15]}  Ka7 {[%clk 0:00:02]} 72. Rc7+ {[%clk 0:00:15]}  Kb8 {[%clk 0:00:02]} 73. Rf7 {[%clk 0:00:16]}  Ka8 {[%clk 0:00:02]} 74. Ke5 {[%clk 0:00:16]}  Re2+ {[%clk 0:00:01]} 75. Kd5 {[%clk 0:00:16]}  Rd2+ {[%clk 0:00:02]} 76. Kc6 {[%clk 0:00:16]}  Rc2+ {[%clk 0:00:03]} 77. Kb6 {[%clk 0:00:16]}  Rc8 {[%clk 0:00:03]} 78. Nc7+ {[%clk 0:00:16]}  Rxc7 {[%clk 0:00:02]} 79. Kxc7 {[%clk 0:00:16]}  Ka7 {[%clk 0:00:01]} 80. Rf6 {[%clk 0:00:15]} 1-0


[Site "https://www.chess.com"]

[Event "Titled Tuesday Blitz October 11 Early 2022"]
[White "Martic, Ivan"]
[Black "Fernandez, Michael"]
[WhiteFideId "929301"]
[BlackFideId "5803560"]
[WhiteElo "2355"]
[BlackElo "2110"]
[Result "1-0"]
[Round "03"]
[TimeControl "180+1"]
[Date "2022.10.12"]
[WhiteClock "0:01:32"]
[BlackClock "0:00:03"]

1. d4 {[%clk 0:03:00]}  Nf6 {[%clk 0:02:59]} 2. Nf3 {[%clk 0:02:58]}  g6 {[%clk 0:02:54]} 3. Nc3 {[%clk 0:02:57]}  d5 {[%clk 0:02:53]} 4. Bf4 {[%clk 0:02:54]}  Bg7 {[%clk 0:02:52]} 5. h4 {[%clk 0:02:51]}  c5 {[%clk 0:02:50]} 6. e3 {[%clk 0:02:48]}  cxd4 {[%clk 0:02:40]} 7. exd4 {[%clk 0:02:49]}  Nc6 {[%clk 0:02:39]} 8. Be2 {[%clk 0:02:42]}  Bg4 {[%clk 0:02:37]} 9. Ne5 {[%clk 0:02:40]}  Bxe2 {[%clk 0:02:33]} 10. Nxe2 {[%clk 0:02:41]}  Qb6 {[%clk 0:02:26]} 11. Nxc6 {[%clk 0:02:38]}  Qxc6 {[%clk 0:02:21]} 12. Be5 {[%clk 0:02:34]}  O-O {[%clk 0:02:05]} 13. c3 {[%clk 0:02:32]}  h6 {[%clk 0:01:53]} 14. Qd3 {[%clk 0:02:25]}  Nd7 {[%clk 0:01:41]} 15. Bxg7 {[%clk 0:02:24]}  Kxg7 {[%clk 0:01:42]} 16. h5 {[%clk 0:02:19]}  e5 {[%clk 0:01:25]} 17. hxg6 {[%clk 0:02:17]}  Qxg6 {[%clk 0:01:10]} 18. Qxg6+ {[%clk 0:02:14]}  fxg6 {[%clk 0:01:09]} 19. dxe5 {[%clk 0:02:08]}  Nxe5 {[%clk 0:01:10]} 20. O-O {[%clk 0:02:07]}  Rad8 {[%clk 0:00:52]} 21. Nd4 {[%clk 0:02:05]}  Rf6 {[%clk 0:00:50]} 22. Rad1 {[%clk 0:02:01]}  Rb8 {[%clk 0:00:35]} 23. Rfe1 {[%clk 0:01:59]}  Nc6 {[%clk 0:00:28]} 24. Nc2 {[%clk 0:01:52]}  Rd6 {[%clk 0:00:24]} 25. Rd2 {[%clk 0:01:49]}  b5 {[%clk 0:00:21]} 26. Red1 {[%clk 0:01:48]}  Rbd8 {[%clk 0:00:17]} 27. Nd4 {[%clk 0:01:47]}  Nxd4 {[%clk 0:00:13]} 28. Rxd4 {[%clk 0:01:48]}  a5 {[%clk 0:00:13]} 29. a4 {[%clk 0:01:47]}  bxa4 {[%clk 0:00:09]} 30. Rxa4 {[%clk 0:01:48]}  Rb8 {[%clk 0:00:08]} 31. Rd2 {[%clk 0:01:45]}  Rb5 {[%clk 0:00:08]} 32. Kf1 {[%clk 0:01:41]}  g5 {[%clk 0:00:08]} 33. Ke2 {[%clk 0:01:38]}  Kf6 {[%clk 0:00:08]} 34. Kd3 {[%clk 0:01:38]}  Re6 {[%clk 0:00:05]} 35. Kc2 {[%clk 0:01:36]}  Re4 {[%clk 0:00:03]} 36. Rxd5 {[%clk 0:01:32]} 1-0


[Site "https://www.chess.com"]